Cogmind - Beta 11.1 @@@ ROGUE MODE // 2022.08.09 @ 22:35:09 Player: Inverisimilidude Result: Destroyed by C-17 Slicer with Blade Saw Performance ------------- Evolutions (3) 1500 Regions Visited (6) 1200 Robots Destroyed (20) 100 Value Destroyed (764) 764 Prototype IDs (7) 140 Alien Tech Used (0) 0 Bonus (333) 333 TOTAL SCORE: 4037 Bonus ------- Follower Combat Kills 33 Aligned with FarCom 300 Cogmind --------- Core Integrity 0/700 Matter 300/300 Energy 100/100 System Corruption 2% Temperature Cool (0) Movement Core (50) Location -7/Factory Parts ------- > --- POWER (2) -------- (None) > --- PROPULSION (3) --- (None) > --- UTILITY (5) ------ (None) > --- WEAPON (3) ------- (None) > --- INVENTORY (5) ---- Aerolev Unit Improved Heat Sink Medium Storage Unit Large Battery (200) Advanced Weight Redist. System Peak State ------------ > --- POWER ------------ Improved Ion Engine > --- PROPULSION ------- Aerolev Unit Aerolev Unit Aerolev Unit > --- UTILITY ---------- Improved Heat Sink Medium Storage Unit 0b10 Alert Chip Targeting Computer > --- WEAPON ----------- Beamcaster Plasma Cannon Enhanced Autogun > --- INVENTORY -------- Heavy Ion Engine Aerolev Unit Aerolev Unit Improved Heat Sink Medium Storage Unit Large Battery Concussive RPG Greatsword [Rating: 40] Favorites ----------- Power Light Ion Engine Engine Light Ion Engine Power Core Enhanced Nuclear Core Propulsion Aluminum Leg Leg Aluminum Leg Wheel Wheel Hover Unit Aerolev Unit Flight Unit Xenon Bombardment Thruster Utility Medium Storage Unit Device Improved Heat Sink Storage Medium Storage Unit Processor 0b10 Alert Chip Weapon Light Assault Rifle Energy Gun Beamcaster Energy Cannon Plasma Cannon Ballistic Gun Light Assault Rifle Launcher EMP Blaster Slashing Weapon Greatsword Build | -11 -10 -10 -10 -9 -8 -7 ------- Run | Scr Mat Min Exi Min Mat Fac Slots Evolved 6 | . . . . . 4 2 Power 1 | . . . . . . 1 Propulsion 1 | . . . . . 1 . Utility 3 | . . . . . 2 1 Weapon 1 | . . . . . 1 . Parts Attached 46 | 6 . 1 4 6 24 5 Power 5 | 1 . . . 1 2 1 Engine 4 | 1 . . . 1 2 . Core 1 | . . . . . . 1 Reactor . | . . . . . . . Propulsion 16 | 2 . . 2 3 6 3 Treads . | . . . . . . . Leg 7 | . . . 1 3 3 . Wheel 3 | 2 . . 1 . . . Hover 4 | . . . . . 3 1 Flight 2 | . . . . . . 2 Utility 9 | 1 . 1 2 . 4 1 Device 4 | . . . 1 . 2 1 Storage 3 | 1 . 1 . . 1 . Processor 2 | . . . 1 . 1 . Hackware . | . . . . . . . Protection . | . . . . . . . Artifact . | . . . . . . . Weapon 16 | 2 . . . 2 12 . Energy Gun 1 | . . . . . 1 . Energy Cannon 3 | . . . . 1 2 . Ballistic Gun 8 | 2 . . . 1 5 . Ballistic Cannon . | . . . . . . . Launcher 2 | . . . . . 2 . Special Weapon . | . . . . . . . Impact Weapon . | . . . . . . . Slashing Weapon 2 | . . . . . 2 . Piercing Weapon . | . . . . . . . Special Melee Weapon . | . . . . . . . Unidentified Prototypes 7 | . . . 3 . 3 1 Parts Lost 13 | . . . . 5 5 3 Power 2 | . . . . 1 1 . Propulsion 6 | . . . . 2 1 3 Utility . | . . . . . . . Weapon 5 | . . . . 2 3 . Highest Loss Streak 4 | . . . . 4 3 3 To Critical Strikes . | . . . . . . . Average Slot Usage (%) 83 | . 85 85 91 90 89 23 Engine 9 | . 14 14 14 13 8 . Leg 15 | . . . . 19 20 . Wheel 4 | . 28 28 27 . . . Hover 2 | . . . . . 3 5 Flight 1 | . . . . . . 11 Device 4 | . . . . . 8 5 Storage 12 | . 14 14 14 14 14 . Processor 9 | . . . 6 14 9 . Energy Gun 1 | . . . . . 2 . Energy Cannon 5 | . . . . 7 7 . Ballistic Gun 14 | . 28 28 28 19 9 . Launcher 1 | . . . . . 3 . Naked Turns 177 | . . . . . 117 60 Heaviest Build 43 | 10 10 15 15 21 43 3 Greatest Support 35 | 20 20 20 20 25 35 12 Greatest Overweight (x) 4 | . . . 1 2 4 . Average Overweight (x) . | . . . . . . . Largest Inventory Capacity 10 | 8 8 10 10 10 10 5 Average Capacity 9 | 7 8 9 10 10 9 5 Most Carried 10 | 4 8 9 10 10 10 5 Average Carried 7 | 2 5 8 9 9 7 4 Final Capacity 10 | 8 8 10 10 10 5 5 Final Carried 10 | 4 8 9 10 10 5 5 Class Distribution -------------------- 64% | Mutant 22% | Skirmisher 8% | Scavenger-Skirmisher 4% | Scavenger-Mutant Dominant Class ---------------- Mutant | -10/Materials Mutant | -10/Mines Mutant | -10/Exiles Mutant | -9/Mines Skirmisher | -8/Materials Mutant | -7/Factory Resources | -11 -10 -10 -10 -9 -8 -7 ----------- Run | Scr Mat Min Exi Min Mat Fac Matter Collected 728 | 205 39 24 . 127 333 . Remotely . | . . . . . . . Salvage Created 916 | . 59 . . 136 721 . Parts 55 | . 6 . . 4 45 . Haulers Intercepted 1 | . . . . . 1 . Recyclers Shooed . | . . . . . . . Parts Field Recycled . | . . . . . . . Retrieved Matter . | . . . . . . . Parts Self-Destructed . | . . . . . . . Prevented . | . . . . . . . Kills | -11 -10 -10 -10 -9 -8 -7 ------- Run | Scr Mat Min Exi Min Mat Fac Combat Hostiles Destroyed 19 | . 3 . . 3 13 . Melee 4 | . . . . . 4 . Guns 8 | . 3 . . 3 2 . Cannons 6 | . . . . . 6 . AOE 1 | . . . . . 1 . Classes Destroyed 5 | . 1 . . 2 2 . Hauler 1 | . . . . . 1 . Swarmer 3 | . 3 . . . . . Grunt 9 | . . . . 2 7 . Sentry 5 | . . . . 1 4 . Hunter 2 | . . . . . 2 . Best Kill Streak 6 | . 3 . . 2 6 . Combat Bots Only 5 | . 3 . . 2 5 . Max Kills in Single Turn 1 | . 1 . . 1 1 . Gunslinging . | . . . . . . . Exploded 1 | . . . . . 1 . Melee 1 | . . . . . 1 . Uniques/NPCs Destroyed . | . . . . . . . Combat | -11 -10 -10 -10 -9 -8 -7 -------- Run | Scr Mat Min Exi Min Mat Fac Damage Taken 3056 | . 48 . . 662 1509 837 Core 1415 | . 21 . . 142 542 710 Absorbed by Shields . | . . . . . . . Core Remaining (%) 45 | 100 . . . 34 1 . Volleys Fired 62 | . 4 . . 26 32 . Largest 3 | . 2 . . 2 3 . Hottest 180 | . 40 . . 100 180 . Shots Fired 132 | . 8 . . 45 79 . Gun 98 | . 8 . . 42 48 . Cannon 28 | . . . . 3 25 . Launcher 6 | . . . . . 6 . Special . | . . . . . . . Kinetic 90 | . 8 . . 42 40 . Thermal 36 | . . . . 3 33 . Explosive 1 | . . . . . 1 . Electromagnetic 5 | . . . . . 5 . Robot Hit Streak 22 | . 6 . . 22 7 . Robot Miss Streak 5 | . 1 . . 1 5 . Penetration Max . | . . . . . . . Secondary Targets . | . . . . . . . Shots Hit Robots 97 | . 6 . . 41 50 . Core Hits 48 | . 4 . . 12 29 3 Critical Kills . | . . . . . . . Critical Parts Destroyed 1 | . . . . 1 . . Critical Strikes 3 | . . . . 1 2 . Burn 1 | . . . . . 1 . Destroy 1 | . . . . 1 . . Sever 1 | . . . . . 1 . Melee Attacks 9 | . . . . . 9 . Impact . | . . . . . . . Slashing 9 | . . . . . 9 . Piercing . | . . . . . . . Sneak Attacks . | . . . . . . . Combat Hostiles . | . . . . . . . Follow-up Attacks . | . . . . . . . Damage Inflicted 1966 | . 47 . . 383 1455 81 Guns 752 | . 47 . . 334 371 . Cannons 457 | . . . . 48 409 . Explosions 294 | . . . . . 294 . Melee 307 | . . . . . 307 . Ramming 156 | . . . . 1 74 81 Kinetic 647 | . 47 . . 334 266 . Thermal 615 | . . . . 48 567 . Explosive 73 | . . . . . 73 . Electromagnetic 168 | . . . . . 168 . Impact . | . . . . . . . Slashing 307 | . . . . . 307 . Piercing . | . . . . . . . Highest Corruption 2 | . . . . . . 2 Average Corruption 2 | . . . . . . 2 Corruption Purged . | . . . . . . . Corruption Blocked . | . . . . . . . Effects 1 | . . . . . . 1 Data Loss (minor) 1 | . . . . . . 1 Overload Shots . | . . . . . . . Overflow Damage 6 | . . . . . 6 . Projectiles 6 | . . . . . 6 . Explosions . | . . . . . . . Melee . | . . . . . . . Knockbacks . | . . . . . . . Impact . | . . . . . . . Kinetic . | . . . . . . . Secondary . | . . . . . . . Self-Inflicted Damage 66 | . . . . . 30 36 Shots . | . . . . . . . Rammed 39 | . . . . . 16 23 Targets Rammed 42 | . . . . 1 18 23 Kicked 3 | . . . . 1 2 . Crushed . | . . . . . . . Highest Temperature 337 | . . . . 149 337 . Average Temperature 99 | . . . . 47 126 . Received Heat Transfer 972 | . . . . 324 648 . Effects 2 | . . . . . 2 . Energy Bleed 2 | . . . . . 2 . Siege Activations . | . . . . . . . Robots Corrupted . | . . . . . . . Combat Hostiles . | . . . . . . . Parts Fried . | . . . . . . . Impact Corruptions . | . . . . . . . Robots Melted . | . . . . . . . Combat Hostiles . | . . . . . . . Parts Melted . | . . . . . . . Heat Transferred 1209 | . . . . 100 1109 . Parts Sabotaged . | . . . . . . . Parts Stolen . | . . . . . . . Parts Stripped . | . . . . . . . Power Chain Reactions 1 | . . . . . 1 . Missiles Intercepted . | . . . . . . . Alert | -11 -10 -10 -10 -9 -8 -7 ------- Run | Scr Mat Min Exi Min Mat Fac Peak Influence 145 | . 70 27 . 29 145 65 Initial 65 | . . 27 . . . 65 Average 35 | . 13 27 . 14 48 61 Maximum Alert Level . | . . . . . . . Low Security (%) 100 | 100 100 100 . 100 100 100 Level 1 . | . . . . . . . Level 2 . | . . . . . . . Level 3 . | . . . . . . . Level 4 . | . . . . . . . Level 5 . | . . . . . . . High Security . | . . . . . . . Max Security . | . . . . . . . Squads Dispatched 9 | . 2 . . 1 5 1 Investigation 3 | . 1 . . . 2 . Extermination . | . . . . . . . Reinforcement 5 | . 1 . . . 3 1 Assault 1 | . . . . 1 . . Garrison . | . . . . . . . Intercept . | . . . . . . . Searches Triggered . | . . . . . . . Construction Impeded . | . . . . . . . Haulers Reinforced . | . . . . . . . Active Scanning Responses . | . . . . . . . Cargo Convoy Interrupts . | . . . . . . . Stealth | -11 -10 -10 -10 -9 -8 -7 --------- Run | Scr Mat Min Exi Min Mat Fac Distress Signals 6 | . 1 . . . 5 . Communications Jammed . | . . . . . . . Distress Signals . | . . . . . . . Times Spotted 44 | . 5 . . 5 29 5 Peak Tracking Total 9 | . 3 . . 3 9 5 Tactical Retreats 4 | . . . . . 3 1 Traps | -11 -10 -10 -10 -9 -8 -7 ------- Run | Scr Mat Min Exi Min Mat Fac Traps Triggered 5 | . . . . . 1 4 Indirectly . | . . . . . . . Trap Hack Attempts . | . . . . . . . Triggered . | . . . . . . . Disarmed . | . . . . . . . Reprogrammed . | . . . . . . . Reused . | . . . . . . . Traps Extracted . | . . . . . . . Installed . | . . . . . . . Triggered 1 | . . . . . 1 . Machines | -11 -10 -10 -10 -9 -8 -7 ---------- Run | Scr Mat Min Exi Min Mat Fac Machines Disabled 1 | . . . . 1 . . Max in Single Turn . | . . . . . . . Machines Sabotaged . | . . . . . . . Garrisons Compromised . | . . . . . . . Overloaded Fab Kills . | . . . . . . . Hacking | -11 -10 -10 -10 -9 -8 -7 --------- Run | Scr Mat Min Exi Min Mat Fac Machines Accessed 6 | . 1 . . 1 4 . Terminals 5 | . 1 . . . 4 . Fabricators . | . . . . . . . Repair Stations . | . . . . . . . Recycling Units . | . . . . . . . Scanalyzers . | . . . . . . . Garrison Access . | . . . . . . . Total Hacks 13 | . 2 . . 1 10 . Successful 3 | . . . . 1 2 . Failed 10 | . 2 . . . 8 . Catastrophic 3 | . 2 . . . 1 . Database Lockouts . | . . . . . . . Manual 13 | . 2 . 2 . 9 . Terminals 12 | . 2 . . . 10 . Fabricators . | . . . . . . . Repair Stations . | . . . . . . . Recycling Units . | . . . . . . . Scanalyzers . | . . . . . . . Garrison Access . | . . . . . . . Terminal Hacks 2 | . . . . 1 1 . Open Door 1 | . . . . 1 . . Branch Access Points 1 | . . . . . 1 . Fabricator Hacks . | . . . . . . . Repair Station Hacks . | . . . . . . . Recycling Unit Hacks . | . . . . . . . Scanalyzer . | . . . . . . . Garrison Access Hacks . | . . . . . . . Unauthorized Hacks 1 | . . . . . 1 . Terminals 1 | . . . . . 1 . Assimilate 1 | . . . . . 1 . Fabricators . | . . . . . . . Repair Stations . | . . . . . . . Recycling Units . | . . . . . . . Scanalyzers . | . . . . . . . Garrison Access . | . . . . . . . Data Cores Recovered . | . . . . . . . Used . | . . . . . . . Hacking Detections 5 | . 1 . . . 4 . Full Trace Events 2 | . 1 . . . 1 . Feedback Events . | . . . . . . . Feedback Blocked . | . . . . . . . Robot Schematics Acquired . | . . . . . . . Robots Built . | . . . . . . . Authchips . | . . . . . . . Time . | . . . . . . . Total Robot Build Rating . | . . . . . . . Part Schematics Acquired . | . . . . . . . Parts Built . | . . . . . . . Authchips . | . . . . . . . Time . | . . . . . . . Total Part Build Rating . | . . . . . . . Parts Repaired . | . . . . . . . Time . | . . . . . . . Parts Recycled . | . . . . . . . Recycled Matter . | . . . . . . . Retrieved Matter . | . . . . . . . Retrieved Components . | . . . . . . . Parts Scanalyzed . | . . . . . . . Part Schematics Acquired . | . . . . . . . Parts Damaged . | . . . . . . . Bothacking | -11 -10 -10 -10 -9 -8 -7 ------------ Run | Scr Mat Min Exi Min Mat Fac Used RIF Installer . | . . . . . . . Robots Hacked . | . . . . . . . Non-combat . | . . . . . . . Combat . | . . . . . . . Robot Hacks Applied . | . . . . . . . Relay Couplers Released . | . . . . . . . Fabnet Peak Effective % . | . . . . . . . Robots Rewired . | . . . . . . . Allies Hacked . | . . . . . . . Hacks Repelled . | . . . . . . . Allies | -11 -10 -10 -10 -9 -8 -7 -------- Run | Scr Mat Min Exi Min Mat Fac Total Allies 2 | . . . . 1 1 . Largest Group 1 | . . . . 1 1 . Highest-Rated Group 31 | . . . . 31 10 . Highest-Rated Ally 31 | . . . . 31 10 . Total Orders 1 | . . . . . 1 . ROAM 1 | . . . . . 1 . Ally Attacks 4 | . . . . 4 . . Total Damage 64 | . . . . 64 . . Kills 1 | . . . . 1 . . Allies Corrupted . | . . . . . . . Allies Melted . | . . . . . . . Intel | -11 -10 -10 -10 -9 -8 -7 ------- Run | Scr Mat Min Exi Min Mat Fac Robot Analysis Total . | . . . . . . . Derelict Logs Recovered . | . . . . . . . Drone Launches . | . . . . . . . Drone Recoveries . | . . . . . . . Exploration | -11 -10 -10 -10 -9 -8 -7 ------------- Run | Scr Mat Min Exi Min Mat Fac Turns Passed 3305 | 47 105 43 321 1032 1438 319 Spaces Moved 2390 | 43 108 52 364 532 764 527 Core 269 | 1 . . . . 183 85 Treads . | . . . . . . . Legs 1010 | . . . . 532 478 . Wheels 566 | 42 108 52 364 . . . Hover 103 | . . . . . 103 . Flight 442 | . . . . . . 442 Fastest Speed 37 | 50 80 80 80 120 50 37 Average Speed 110 | 79 80 80 85 176 133 41 Slowest Speed 290 | 80 80 80 95 260 290 50 Overloaded Moves . | . . . . . . . Propulsion Burnouts . | . . . . . . . Robots Hopped . | . . . . . . . Cave-ins Triggered . | . . . . . . . Exploration Rate (%) 40 | 3 32 21 72 86 58 13 Regions Visited 6 Branch Regions 3 Pre-discovered Areas . | . . . . . . . Known Exits Taken . | . . . . . . . Unknown Exits Taken 6 | 1 1 1 1 1 1 . Scrap Searched 2 | . . 1 . 1 . . Spaces Dug . | . . . . . . . Terrain Destroyed 31 | . . . . 1 30 . Melee . | . . . . . . . Projectile 10 | . . . . 1 9 . AOE 21 | . . . . . 21 . Terrain Rammed . | . . . . . . . Walls Destroyed . | . . . . . . . Machines Disabled . | . . . . . . . Actions | -11 -10 -10 -10 -9 -8 -7 --------- Run | Scr Mat Min Exi Min Mat Fac Total 2931 | 53 119 53 371 590 1117 628 Wait 296 | . 4 . . 14 245 33 Move 2384 | 42 107 51 363 531 763 527 Hop . | . . . . . . . Pick Up 30 | 5 4 . 2 7 10 2 Fast Attach 16 | 5 . 1 2 . 4 4 Attach 24 | 1 . . 1 5 16 1 Detach 7 | . . 1 . . 6 . Swap 6 | . . . 1 1 4 . Drop 19 | . . . 2 5 10 2 Fire 62 | . 4 . . 26 32 . Melee 9 | . . . . . 9 . Ram 39 | . . . . . 16 23 Kick 3 | . . . . 1 2 . Crush . | . . . . . . . Escape Stasis 36 | . . . . . . 36 Rewire . | . . . . . . . Trap . | . . . . . . . Miscellaneous . | . . . . . . . Route ------- -11/Scrapyard -10/Materials -10/Mines -10/Exiles (discovered 2 exits: *Min x2) -9/Mines -8/Materials -7/Factory History --------- Turn | Location | Event 12 | -11/Scrapyard | Discovered new exit (range 15) 48 | -11/Scrapyard | Entered Materials 144 | -10/Materials | Discovered new exit (range 12) 153 | -10/Materials | Entered Mines 192 | -10/Mines | Deemed a non-threat by the Exiles lab entrance 193 | -10/Mines | Discovered new exit (range 5) 196 | -10/Mines | Entered Exiles 221 | -10/Exiles | Discovered new exit (range 15) 235 | -10/Exiles | Met 8R-AWN 247 | -10/Exiles | Met EX-HEX 300 | -10/Exiles | Met EX-DEC 317 | -10/Exiles | Build established: Mutant 329 | -10/Exiles | Met EX-BIN 338 | -10/Exiles | Aligned with FarCom system 339 | -10/Exiles | Given EX-Vault access code 367 | -10/Exiles | Opened EX-Vault 370 | -10/Exiles | Found Prototype Device 370 | -10/Exiles | Identified PSU Rigger 375 | -10/Exiles | Found Prototype Processor 375 | -10/Exiles | Identified 0b10 Alert Chip 378 | -10/Exiles | Found Prototype Leg 379 | -10/Exiles | Identified Potential Leg 401 | -10/Exiles | Warned to stay clear of 0b10 Research branches 504 | -10/Exiles | Discovered new exit (range 14) 517 | -10/Exiles | Left Exiles lab with 0b10 Alert Chip 517 | -10/Exiles | Entered Mines 536 | -9/Mines | Core integrity fell below 50% 541 | -9/Mines | Met a Derelict bent on vengeance 574 | -9/Mines | Lost 4 parts (1p2n1w) 601 | -9/Mines | Met a Derelict who couldn't figure out how to use a Trap Extractor 845 | -9/Mines | Met a Derelict testing a Signal Generator 1533 | -9/Mines | Discovered new exit (range 8) 1549 | -9/Mines | Entered Materials 1549 | -8/Materials | Evolved 4 slots: Propulsion x1, Utility x2, Weapon x1 2352 | -8/Materials | Build established: Skirmisher 2870 | -8/Materials | Released all parts (10) 2898 | -8/Materials | Core integrity fell below 50% 2900 | -8/Materials | Lost 3 parts (1p2w) 2948 | -8/Materials | Core integrity fell below 20% 2980 | -8/Materials | Discovered new exit (range 15) 2987 | -8/Materials | Entered Factory 2987 | -7/Factory | Evolved 2 slots: Power x1, Utility x1 3165 | -7/Factory | Build established: Mutant 3284 | -7/Factory | Core integrity fell below 50% 3299 | -7/Factory | Lost 3 parts (3n) 3300 | -7/Factory | Core integrity fell below 20% 3306 | -7/Factory | Destroyed by C-17 Slicer with Blade Saw Last Messages --------------- 03248_ Field strength at 35. 03249_ Field strength at 30. 03250_ Field strength at 25. 03251_ Field strength at 20. 03252_ Field strength at 15. 03253_ Field strength at 10. 03254_ Field strength at 5. 03255_ Stasis field depleted. 03264_ ALERT: Suspicious intruders detected, dispatching Cutter reinforcements to area. 03266_ Penetrated by Slug. 03266_ Broken Xenon Bombardment Thruster destroyed. 03266_ Xenon Bombardment Thruster destroyed. 03266_ Critical hit (Blast). 03268_ ALERT: All DSF locations entering lockdown mode. 03268_ Knocked back. 03268_ Aerolev Unit destroyed. 03268_ Knocked back. 03272_ Adv. ECM Suite severed. 03272_ Slammed into C-17 Slicer. Map ----- +----------------------------------------------------+ | | | #######????###??###########???????################ | | # ???? #?# #???????# | | # """""" #?# !! ######### | | # """""" #?# !! # ## | | # """""" #?# !! # " ## | | # """""" #?# # " ## | | # #?# # " ## | | # """""" #?# ! # " ! ## | | # """""" #?# # " ## | | # """""" #######+##### " ## | | # """""" + + " #?########+###### | | # # ##### " #??????# | | ##### ##### #???# " #???#### | | #???# ! "" #?## ## | | # ############## S"" ## ## | | # # "" | | + u uc # # #### | | # # " " " # ## ### #??? | | # " " " #??? | | + " " "% #??? | | ## " " !!/ "%% #??? | | #### ## " " !/! "%c% #??? | | ??### #### " " !/! "%# #??? | | ????# #??# " " "c##### ### #########??? | | ????# #??# " " "@#???# #?# #??????????? | | ##### #??# " " "c#???# #?# #??????????? | | # ##?# %%%#???# #?# #??????????? | | = # T#?##############???#+#?# #??????????? | | # #??????????????????? #?#H #??????????? | | " # ##??????????????????? ??# #??????????? | | " + #???????????????????? ??# #??????????? | | "" # #???????????????????????# #??????????? | | "" # #???????????????????????# #??????????? | | "" # ###################+##?? ???????????? | | # ? ???????????? | | ##### ? ???????????? | | # ???????????????? | | + ???????????????? | | # ???????????????? | | # ##########??????????????????????? | | # #???????????????????????????????? | | # #???????????????????????????????? | | # #???????????????????????????????? | | # #???????????????????????????????? | | # #???????????????????????????????? | | ##### #???????????????????????????????? | | ????# ########???????????????????????????????? | | ##### #??????????????????????????????????????? | | #??????????????????????????????????????? | +----------------------------------------------------+ Best States ------------- Heat Dissipation 45 Energy Generation 14 Energy Capacity 280 Matter Stores 300 Matter Capacity 300 Sight Range 16 Terrain Scan Density 10 Evasion (%) 62 Targeting Accuracy 5 Item Schematics ----------------- None Robot Schematics ------------------ None Fabricated ------------ Nothing Alien Tech Used ----------------- None Achievements -------------- None Challenges ------------ None Game ------ Seed RestorationContainmentKit Manual? 0 Play Time 00:28:49 Cumulative 29.9 hours Start 2022.08.09 @ 22:07:36 End 2022.08.09 @ 22:35:09 Sessions 1 Manual Loads 0 Difficulty Rogue Special Mode None Game No. 33 Rogue 33 Adventurer 0 Explorer 0 Win Type - Total 0 Types 0/0/0/0/0/0/0/0/0 Lore% 30 Gallery% 28 Achievement% 27 Wizard Run 0 Options --------- ASCII 0 Keyboard 0 Movement Arrows Keybinds 0 Fullscreen 1 Font 18/SmallcapsGlow Map View 76x50 Tactical HUD 1 Map Filters NONE Filters NONE Steam 1 RUN: 305dcfee-4c59-49bc-b0f2-9152073f3f18